fUSD/lending_fUSD_20240612
["ID","MTS","AMOUNT","RATE_DAILY","PERIOD"]
[329228950,1718191839879,-150.0,0.00019462,2]
[329228951,1718191839901,-150.0,0.00019471,2]
[329228952,1718191839924,-150.0,0.00019483,2]
[329228953,1718191839944,-150.0,0.00019508,2]
[329228954,1718191839964,-150.0,0.00019511,2]
[329228955,1718191840002,-150.0,0.00019514,2]
[329228956,1718191840019,-150.0,0.00019526,2]
[329228957,1718191840040,-150.0,0.0001955,2]
[329228958,1718191840065,-408.92,0.00019578,3]
[329228959,1718191840085,-150.0,0.00019582,2]
[329228960,1718191840130,-500.0,0.00019587,2]
[329228961,1718191840147,-500.0,0.00019587,2]
[329228962,1718191840160,-500.0,0.00019587,2]
[329228963,1718191840172,-500.0,0.00019587,2]
[329228964,1718191840202,-500.0,0.00019587,2]
[329228965,1718191840214,-389.00984236,0.00019587,2]
[329228966,1718191840240,-500.0,0.00019587,2]
[329228967,1718191840268,-500.0,0.00019587,2]
[329228968,1718191840307,-500.0,0.00019587,2]
[329228969,1718191840324,-333.67487673,0.00019587,2]
[329228970,1718191840359,-570.29,0.00019587,2]
[329228972,1718191840383,-500.0,0.00019587,2]
[329228973,1718191840401,-500.0,0.00019587,2]
[329228974,1718191840428,-379.64727992,0.00019587,2]
[329228975,1718191840442,-500.0,0.00019587,2]
[329228976,1718191840467,-500.0,0.00019587,2]
[329228977,1718191840484,-500.0,0.00019587,2]
[329228978,1718191840501,-500.0,0.00019587,2]
[329228979,1718191840522,-500.0,0.00019587,2]
[329228980,1718191840542,-500.0,0.00019587,2]
[329228981,1718191840568,-500.0,0.00019587,2]
[329228982,1718191840616,-500.0,0.00019587,2]
[329228983,1718191840658,-500.0,0.00019587,2]
[329228984,1718191840690,-500.0,0.00019587,2]
[329228985,1718191840717,-500.0,0.00019587,2]
[329228986,1718191840746,-500.0,0.00019587,2]
[329228987,1718191840762,-500.0,0.00019587,2]
[329228988,1718191840793,-500.0,0.00019587,2]
[329228989,1718191840811,-500.0,0.00019587,2]
[329228990,1718191840840,-500.0,0.00019587,2]
[329228991,1718191840872,-500.0,0.00019587,2]
[329228992,1718191840885,-500.0,0.00019587,2]
[329228993,1718191840898,-500.0,0.00019587,2]
[329228994,1718191840918,-500.0,0.00019587,2]
[329228995,1718191840934,-500.0,0.00019587,2]
[329228996,1718191840954,-500.0,0.00019587,2]
[329228997,1718191840967,-567.41232457,0.00019587,2]
[329228998,1718191840996,-500.0,0.00019587,2]
[329228999,1718191841008,-500.0,0.00019587,2]
[329229000,1718191841020,-500.0,0.00019587,2]
[329229001,1718191841034,-500.0,0.00019587,2]
[329229002,1718191841060,-500.0,0.00019587,2]
[329229003,1718191841072,-500.0,0.00019587,2]
[329229004,1718191841089,-500.0,0.00019587,2]
[329229005,1718191841118,-500.0,0.00019587,2]
[329229006,1718191841155,-633.60629861,0.00019587,2]
[329229007,1718191841167,-500.0,0.00019587,2]
[329229008,1718191841183,-500.0,0.00019587,2]
[329229009,1718191841199,-500.0,0.00019587,2]
[329229010,1718191841211,-500.0,0.00019587,2]
[329229011,1718191841224,-500.0,0.00019587,2]
[329229012,1718191841241,-500.0,0.00019587,2]
[329229013,1718191841254,-455.46082091,0.00019587,2]
[329229014,1718191841501,-44.53917909,0.00019587,2]
[329229015,1718191841533,-805.0,0.00019587,2]
[329229016,1718191841575,-500.0,0.00019587,2]
[329229017,1718191841587,-500.0,0.00019587,2]
[329229018,1718191841602,-1421.08,0.00019587,2]
[329229019,1718191841644,-500.0,0.00019587,2]
[329229020,1718191841672,-551.77304503,0.00019587,2]
[329229021,1718191841684,-1063.22,0.00019587,2]
[329229022,1718191841699,-6.55111905,0.00019587,2]
[329229059,1718191843795,-783.31888095,0.00019587,2]
[329229060,1718191843807,-500.0,0.00019587,2]
[329229062,1718191843818,-1095.74,0.00019587,2]
[329229064,1718191843829,-500.0,0.00019587,2]
[329229065,1718191843855,-500.0,0.00019587,2]
[329229066,1718191843890,-500.0,0.00019587,2]
[329229067,1718191843906,-500.0,0.00019587,2]
[329229068,1718191843919,-500.0,0.00019587,2]
[329229069,1718191843932,-2101.54,0.00019587,2]
[329229070,1718191843943,-500.0,0.00019587,2]
[329229071,1718191843954,-811.23,0.00019587,2]
[329229072,1718191843966,-500.0,0.00019587,2]
[329229073,1718191843980,-500.0,0.00019587,2]
[329229074,1718191843995,-500.0,0.00019587,2]
[329229075,1718191844005,-500.0,0.00019587,2]
[329229078,1718191844019,-500.0,0.00019587,2]
[329229080,1718191844045,-500.0,0.00019587,2]
[329229083,1718191844065,-760.02,0.00019587,2]
[329229085,1718191844077,-594.76,0.00019587,2]
[329229087,1718191844090,-359.30847487,0.00019587,2]
[329229089,1718191844109,-500.0,0.00019587,2]
[329229091,1718191844127,-500.0,0.00019587,2]
[329229092,1718191844151,-500.0,0.00019587,2]
[329229093,1718191844183,-500.0,0.00019587,2]
[329229094,1718191844204,-500.0,0.00019587,2]
[329229095,1718191844216,-770.31,0.00019587,2]
[329229096,1718191844229,-865.1,0.00019587,2]
[329229097,1718191844240,-7587.97,0.00019587,2]
[329229098,1718191844252,-500.0,0.00019587,2]
[329229099,1718191844262,-492.12501994,0.00019587,2]
[329229100,1718191844273,-309.36174599,0.00019587,2]
[329229101,1718191844283,-500.0,0.00019587,2]
[329229102,1718191844296,-500.0,0.00019587,2]
[329229103,1718191844313,-1731.15,0.00019587,2]
[329229104,1718191844337,-500.0,0.00019587,2]
[329229105,1718191844385,-500.0,0.00019587,2]
[329229106,1718191844398,-500.0,0.00019587,2]
[329229107,1718191844411,-500.0,0.00019587,2]
[329229108,1718191844435,-500.0,0.00019587,2]
[329229109,1718191844472,-500.0,0.00019587,2]
[329229110,1718191844487,-500.0,0.00019587,2]
[329229111,1718191844515,-500.0,0.00019587,2]
[329229112,1718191844535,-1365.74,0.00019587,2]
[329229115,1718191844555,-500.0,0.00019587,2]
[329229116,1718191844577,-500.0,0.00019587,2]
[329229117,1718191844598,-500.0,0.00019587,2]
[329229118,1718191844619,-500.0,0.00019587,2]
[329229119,1718191844631,-500.0,0.00019587,2]
[329229120,1718191844643,-500.0,0.00019587,2]
[329229121,1718191844657,-742.33,0.00019587,2]
[329229122,1718191844671,-500.0,0.00019587,2]
[329229124,1718191844687,-500.0,0.00019588,2]
[329229126,1718191844709,-500.0,0.00019588,2]
[329229128,1718191844732,-500.0,0.00019588,2]
[329229129,1718191844749,-500.0,0.00019588,2]
[329229131,1718191844761,-512.57,0.00019588,2]
[329229132,1718191844778,-588.83,0.00019588,2]
[329229133,1718191844792,-500.0,0.00019588,2]
[329229134,1718191844817,-500.0,0.00019588,2]
[329229135,1718191844834,-500.0,0.00019588,2]
[329229136,1718191844856,-500.0,0.00019588,2]
[329229137,1718191844890,-500.0,0.00019588,2]
[329229138,1718191844916,-500.0,0.00019588,2]
[329229139,1718191844949,-500.0,0.00019588,2]
[329229140,1718191844961,-500.0,0.00019588,2]
[329229141,1718191844984,-727.91,0.00019588,2]
[329229142,1718191845002,-500.0,0.00019588,2]
[329229143,1718191845034,-500.0,0.00019588,2]
[329229144,1718191845059,-588.04,0.00019588,2]
[329229145,1718191845084,-500.0,0.00019588,2]
[329229146,1718191845099,-500.0,0.00019588,2]
[329229147,1718191845111,-500.0,0.00019588,2]
[329229148,1718191845135,-544.64,0.00019588,2]
[329229149,1718191845151,-1242.63,0.00019588,2]
[329229150,1718191845165,-1281.97,0.00019588,2]
[329229151,1718191845176,-2260.06,0.00019588,2]
[329229152,1718191845188,-500.0,0.00019588,2]
[329229153,1718191845199,-500.0,0.00019588,2]
[329229154,1718191845214,-332.75953844,0.00019588,2]
[329229155,1718191845227,-500.0,0.00019588,2]
[329229156,1718191845239,-500.0,0.00019588,2]
[329229157,1718191845251,-500.0,0.00019588,2]
[329229158,1718191845264,-500.0,0.00019588,2]
[329229159,1718191845276,-500.0,0.00019588,2]
[329229160,1718191845288,-500.0,0.00019588,2]
[329229161,1718191845300,-500.0,0.00019588,2]
[329229162,1718191845310,-500.0,0.00019589,2]
[329229163,1718191845322,-500.0,0.00019589,2]
[329229164,1718191845368,-500.0,0.00019589,2]
[329229165,1718191845381,-500.0,0.00019589,2]
[329229166,1718191845393,-357.60248879,0.00019589,2]
[329229167,1718191845404,-150.0,0.00019654,2]
[329229168,1718191845416,-1500.0,0.00019672,2]
[329229169,1718191845439,-500.0,0.00019723,2]
[329229170,1718191845477,-1018.41,0.00019723,2]
[329229171,1718191845494,-500.0,0.00019723,2]
[329229172,1718191845515,-579.55,0.00019723,2]
[329229173,1718191845548,-500.0,0.00019723,2]
[329229174,1718191845560,-500.0,0.00019723,2]
[329229175,1718191845599,-345.05882338,0.00019723,2]
[329229176,1718191845622,-569.48,0.00019723,2]
[329229177,1718191845634,-500.0,0.00019723,2]
[329229178,1718191845651,-1114.44,0.00019723,2]
[329229179,1718191845667,-500.0,0.00019723,2]
[329229180,1718191845684,-500.0,0.00019723,2]
[329229181,1718191845699,-500.0,0.00019723,2]
[329229182,1718191845718,-500.0,0.00019723,2]
[329229183,1718191845731,-906.12,0.00019723,2]
[329229184,1718191846025,-500.0,0.00019723,2]
[329229185,1718191846036,-500.0,0.00019723,2]
[329229186,1718191846047,-2673.62,0.00019723,2]
[329229187,1718191846059,-615.56,0.00019723,2]
[329229188,1718191846072,-535.85,0.00019723,2]
[329229189,1718191846084,-500.0,0.00019723,2]
[329229190,1718191846102,-500.0,0.00019724,2]
[329229191,1718191846119,-500.0,0.00019724,2]
[329229192,1718191846132,-500.0,0.00019724,2]
[329229193,1718191846151,-264.62785262,0.00019724,2]
[329229194,1718191846162,-513.69752757,0.00019724,2]
[329229195,1718191846174,-500.0,0.00019724,2]
[329229196,1718191846187,-570.29,0.00019724,2]
[329229197,1718191846204,-447.7699591,0.00019724,2]
[329229198,1718191846224,-500.0,0.00019724,2]
[329229199,1718191846241,-500.0,0.00019724,2]
[329229200,1718191846253,-322.32119612,0.00019724,2]
[329229201,1718191846270,-500.0,0.00019724,2]
[329229202,1718191846286,-500.0,0.00019724,2]
[329229203,1718191846315,-1421.08,0.00019724,2]
[329229204,1718191846332,-500.0,0.00019724,2]
[329229205,1718191846372,-1063.22,0.00019724,2]
[329229206,1718191846388,-789.87,0.00019724,2]
[329229207,1718191846408,-500.0,0.00019724,2]
[329229208,1718191846436,-1095.74,0.00019724,2]
[329229209,1718191846447,-500.0,0.00019724,2]
[329229210,1718191846462,-500.0,0.00019724,2]
[329229211,1718191846476,-500.0,0.00019724,2]
[329229212,1718191846495,-500.0,0.00019724,2]
[329229213,1718191846511,-2101.54,0.00019724,2]
[329229214,1718191846522,-500.0,0.00019724,2]
[329229215,1718191846533,-811.23,0.00019724,2]
[329229216,1718191846555,-500.0,0.00019724,2]
[329229217,1718191846569,-500.0,0.00019724,2]
[329229218,1718191846596,-500.0,0.00019724,2]
[329229219,1718191846619,-500.0,0.00019724,2]
[329229220,1718191846633,-760.02,0.00019724,2]
[329229221,1718191846662,-594.76,0.00019724,2]
[329229222,1718191846677,-500.0,0.00019724,2]
[329229223,1718191846708,-500.0,0.00019724,2]
[329229224,1718191846723,-254.52674567,0.00019724,2]
[329229225,1718191846742,-500.0,0.00019724,2]
[329229226,1718191846754,-500.0,0.00019724,2]
[329229227,1718191846766,-770.31,0.00019724,2]
[329229228,1718191846783,-865.1,0.00019724,2]
[329229229,1718191846795,-500.0,0.00019724,2]
[329229230,1718191846813,-1731.15,0.00019724,2]
[329229231,1718191846837,-500.0,0.00019724,2]
[329229232,1718191846849,-500.0,0.00019724,2]
[329229233,1718191846867,-500.0,0.00019724,2]
[329229234,1718191846881,-500.0,0.00019724,2]
[329229235,1718191846893,-500.0,0.00019724,2]
[329229236,1718191846905,-500.0,0.00019724,2]
[329229237,1718191846923,-500.0,0.00019724,2]
[329229238,1718191846941,-500.0,0.00019724,2]
[329229240,1718191846969,-1365.74,0.00019724,2]
[329229241,1718191846988,-500.0,0.00019724,2]
[329229242,1718191847007,-500.0,0.00019724,2]
[329229243,1718191847030,-500.0,0.00019724,2]
[329229244,1718191847044,-517.77817863,0.00019724,2]
[329229246,1718191847058,-500.0,0.00019724,2]
[329229247,1718191847073,-742.33,0.00019724,2]
[329229248,1718191847088,-776.13,0.00019725,2]
[329229249,1718191847115,-500.0,0.00019725,2]
[329229250,1718191847134,-500.0,0.00019725,2]
[329229251,1718191847156,-533.84,0.00019725,2]
[329229252,1718191847170,-533.86034985,0.00019725,2]
[329229253,1718191847185,-500.0,0.00019725,2]
[329229254,1718191847202,-500.0,0.00019725,2]
[329229255,1718191847213,-500.0,0.00019725,2]
[329229256,1718191847229,-524.09493124,0.00019725,2]
[329229257,1718191847248,-597.81485485,0.00019725,2]
[329229259,1718191847265,-511.95177862,0.00019725,2]
[329229260,1718191847280,-500.0,0.00019725,2]
[329229261,1718191847292,-500.0,0.00019725,2]
[329229262,1718191847310,-500.0,0.00019725,2]
[329229263,1718191847326,-500.0,0.00019725,2]
[329229265,1718191847379,-500.0,0.00019725,2]
[329229266,1718191847392,-500.0,0.00019725,2]
[329229267,1718191847411,-500.0,0.00019725,2]
[329229268,1718191847430,-522.69878769,0.00019725,2]
[329229269,1718191847446,-500.0,0.00019725,2]
[329229270,1718191847459,-500.0,0.00019725,2]
[329229271,1718191847473,-500.0,0.00019725,2]
[329229272,1718191847493,-500.0,0.00019725,2]
[329229273,1718191847517,-500.0,0.00019725,2]
[329229274,1718191847537,-512.57,0.00019725,2]
[329229275,1718191847553,-588.83,0.00019725,2]
[329229276,1718191847568,-500.0,0.00019725,2]
[329229277,1718191847586,-500.0,0.00019725,2]
[329229278,1718191847603,-500.0,0.00019725,2]
[329229279,1718191847620,-500.0,0.00019725,2]
[329229280,1718191847631,-500.0,0.00019725,2]
[329229281,1718191847652,-500.0,0.00019725,2]
[329229282,1718191847666,-500.0,0.00019725,2]
[329229283,1718191847681,-651.23,0.00019725,2]
[329229284,1718191847694,-500.0,0.00019725,2]
[329229285,1718191847712,-727.91,0.00019725,2]
[329229286,1718191847723,-500.0,0.00019725,2]
[329229287,1718191847738,-500.0,0.00019725,2]
[329229288,1718191847751,-500.0,0.00019725,2]
[329229289,1718191847770,-500.0,0.00019725,2]
[329229290,1718191847819,-500.0,0.00019725,2]
[329229291,1718191847851,-588.04,0.00019725,2]
[329229292,1718191847871,-544.64,0.00019725,2]
[329229293,1718191847885,-1242.63,0.00019725,2]
[329229294,1718191847901,-1281.97,0.00019725,2]
[329229295,1718191847915,-543.27382911,0.00019725,2]
[329229296,1718191847929,-2260.06,0.00019725,2]
[329229297,1718191847943,-500.0,0.00019725,2]
[329229298,1718191847974,-500.0,0.00019725,2]
[329229299,1718191847993,-500.0,0.00019725,2]
[329229300,1718191848029,-520.70378276,0.00019725,2]
[329229301,1718191848053,-500.0,0.00019725,2]
[329229302,1718191848080,-500.0,0.00019725,2]
[329229303,1718191848094,-500.0,0.00019725,2]
[329229304,1718191848108,-500.0,0.00019725,2]
[329229305,1718191848121,-500.0,0.00019725,2]
[329229306,1718191848133,-500.0,0.00019725,2]
[329229307,1718191848152,-500.0,0.00019725,2]
[329229308,1718191848174,-500.0,0.00019725,2]
[329229309,1718191848191,-500.0,0.00019725,2]
[329229310,1718191848233,-539.65457843,0.00019725,2]
[329229311,1718191848270,-500.0,0.00019726,2]
[329229312,1718191848290,-500.0,0.00019726,2]
[329229313,1718191848308,-500.0,0.00019726,2]
[329229314,1718191848335,-500.0,0.00019726,2]
[329229315,1718191848379,-960.53440713,0.000198,2]
[329229316,1718191848394,-150.45143,0.000198,2]
[329229317,1718191848410,-150.0,0.0001985,2]
[329229318,1718191848426,-500.0,0.0001986,2]
[329229319,1718191848445,-1018.41,0.0001986,2]
[329229320,1718191848458,-619.94375678,0.0001986,2]
[329229322,1718191848485,-579.55,0.0001986,2]
[329229324,1718191848507,-500.0,0.0001986,2]
[329229325,1718191848539,-500.0,0.0001986,2]
[329229326,1718191848551,-569.48,0.0001986,2]
[329229327,1718191848564,-500.0,0.0001986,2]
[329229328,1718191848575,-1114.44,0.0001986,2]
[329229329,1718191848589,-500.0,0.0001986,2]
[329229330,1718191848600,-500.0,0.0001986,2]
[329229331,1718191848611,-500.0,0.0001986,2]
[329229332,1718191848627,-500.0,0.0001986,2]
[329229333,1718191848638,-906.12,0.0001986,2]
[329229334,1718191848651,-500.0,0.0001986,2]
[329229335,1718191848663,-500.0,0.0001986,2]
[329229336,1718191848674,-2673.62,0.0001986,2]
[329229337,1718191848685,-615.56,0.0001986,2]
[329229338,1718191848698,-535.85,0.0001986,2]
[329229339,1718191848717,-500.0,0.0001986,2]
[329229340,1718191848728,-500.0,0.00019861,2]
[329229341,1718191848744,-500.0,0.00019861,2]
[329229342,1718191848762,-500.0,0.00019861,2]
[329229343,1718191848773,-570.29,0.00019861,2]
[329229344,1718191848788,-500.0,0.00019861,2]
[329229345,1718191848804,-500.0,0.00019861,2]
[329229346,1718191848818,-507.48,0.00019861,2]
[329229347,1718191848831,-500.0,0.00019861,2]
[329229348,1718191848843,-1421.08,0.00019861,2]
[329229349,1718191848859,-500.0,0.00019861,2]
[329229350,1718191848886,-1063.22,0.00019861,2]
[329229351,1718191848905,-789.87,0.00019861,2]
[329229352,1718191848934,-500.0,0.00019861,2]
[329229353,1718191848957,-1095.74,0.00019861,2]
[329229354,1718191848969,-500.0,0.00019861,2]
[329229355,1718191848980,-500.0,0.00019861,2]
[329229356,1718191848994,-500.0,0.00019861,2]
[329229357,1718191849006,-500.0,0.00019861,2]
[329229358,1718191849019,-2101.54,0.00019861,2]
[329229359,1718191849030,-500.0,0.00019861,2]
[329229360,1718191849049,-811.23,0.00019861,2]
[329229361,1718191849061,-500.0,0.00019861,2]
[329229362,1718191849074,-500.0,0.00019861,2]
[329229363,1718191849089,-500.0,0.00019861,2]
[329229364,1718191849106,-500.0,0.00019861,2]
[329229365,1718191849119,-760.02,0.00019861,2]
[329229366,1718191849140,-594.76,0.00019861,2]
[329229367,1718191849163,-500.0,0.00019861,2]
[329229368,1718191849179,-500.0,0.00019861,2]
[329229369,1718191849191,-500.0,0.00019861,2]
[329229370,1718191849202,-500.0,0.00019861,2]
[329229371,1718191849216,-770.31,0.00019861,2]
[329229372,1718191849232,-865.1,0.00019861,2]
[329229373,1718191849268,-500.0,0.00019861,2]
[329229374,1718191849279,-1731.15,0.00019861,2]
[329229375,1718191849290,-500.0,0.00019861,2]
[329229376,1718191849303,-500.0,0.00019861,2]
[329229377,1718191849323,-500.0,0.00019861,2]
[329229378,1718191849340,-500.0,0.00019861,2]
[329229379,1718191849390,-500.0,0.00019861,2]
[329229381,1718191849403,-500.0,0.00019861,2]
[329229382,1718191849418,-500.0,0.00019861,2]
[329229383,1718191849430,-500.0,0.00019861,2]
[329229384,1718191849442,-1365.74,0.00019861,2]
[329229385,1718191849458,-500.0,0.00019861,2]
[329229386,1718191849477,-500.0,0.00019861,2]
[329229387,1718191849490,-500.0,0.00019861,2]
[329229388,1718191849505,-500.0,0.00019861,2]
[329229389,1718191849522,-742.33,0.00019861,2]
[329229390,1718191849535,-776.13,0.00019862,2]
[329229391,1718191849551,-500.0,0.00019862,2]
[329229392,1718191849563,-500.0,0.00019862,2]
[329229393,1718191849575,-533.84,0.00019862,2]
[329229394,1718191849592,-500.0,0.00019862,2]
[329229395,1718191849603,-500.0,0.00019862,2]
[329229396,1718191849615,-500.0,0.00019862,2]
[329229397,1718191849629,-500.0,0.00019862,2]
[329229398,1718191849642,-500.0,0.00019862,2]
[329229399,1718191849653,-512.57,0.00019862,2]
[329229400,1718191849670,-588.83,0.00019862,2]
[329229401,1718191849683,-500.0,0.00019862,2]
[329229403,1718191849700,-500.0,0.00019862,2]
[329229406,1718191849718,-500.0,0.00019862,2]
[329229408,1718191849731,-391.60745327,0.00019862,2]
[329229410,1718191849751,-500.0,0.00019862,2]
[329229412,1718191849767,-500.0,0.00019862,2]
[329229414,1718191849782,-500.0,0.00019862,2]
[329229416,1718191849801,-651.23,0.00019862,2]
[329229419,1718191849818,-500.0,0.00019862,2]
[329229421,1718191849836,-727.91,0.00019862,2]
[329229423,1718191849848,-500.0,0.00019862,2]
[329229425,1718191849860,-500.0,0.00019862,2]
[329229427,1718191849879,-500.0,0.00019862,2]
[329229429,1718191849894,-500.0,0.00019862,2]
[329229431,1718191849909,-500.0,0.00019862,2]
[329229433,1718191849925,-588.04,0.00019862,2]
[329229436,1718191849942,-544.64,0.00019862,2]
[329229438,1718191849956,-1242.63,0.00019862,2]
[329229440,1718191849980,-1281.97,0.00019862,2]
[329229441,1718191849992,-2260.06,0.00019862,2]
[329229443,1718191850005,-500.0,0.00019862,2]
[329229445,1718191850019,-500.0,0.00019862,2]
[329229447,1718191850031,-500.0,0.00019862,2]
[329229449,1718191850043,-500.0,0.00019862,2]
[329229451,1718191850058,-500.0,0.00019862,2]
[329229453,1718191850073,-500.0,0.00019862,2]
[329229455,1718191850086,-500.0,0.00019862,2]
[329229457,1718191850100,-500.0,0.00019862,2]
[329229459,1718191850118,-500.0,0.00019862,2]
[329229460,1718191850134,-500.0,0.00019862,2]
[329229462,1718191850149,-500.0,0.00019863,2]
[329229465,1718191850172,-500.0,0.00019863,2]
[329229467,1718191850192,-500.0,0.00019863,2]
[329229469,1718191850228,-207.82626452,0.00019863,2]
[329229471,1718191850245,-177.19302388,0.000199,2]
[329229474,1718191850260,-500.0,0.00019911,2]
[329229476,1718191850278,-150.0,0.00019955,2]
[329229478,1718191850308,-150.0,0.00019975,2]
[329229480,1718191850327,-1500.0,0.0001999,2]
[329229481,1718191850371,-198.3,0.00019995,2]
[329229483,1718191850411,-500.0,0.00019997,2]
[329229485,1718191850432,-1018.41,0.00019997,2]
[329229487,1718191850447,-579.55,0.00019997,2]
[329229489,1718191850465,-500.0,0.00019997,2]
[329229491,1718191850478,-500.0,0.00019997,2]
[329229493,1718191850495,-569.48,0.00019997,2]
[329229496,1718191850535,-500.0,0.00019997,2]
[329229498,1718191850553,-1114.44,0.00019997,2]
[329229500,1718191850576,-500.0,0.00019997,2]
[329229501,1718191850598,-500.0,0.00019997,2]
[329229504,1718191850625,-500.0,0.00019997,2]
[329229506,1718191850642,-500.0,0.00019997,2]
[329229507,1718191850659,-906.12,0.00019997,2]
[329229508,1718191850673,-500.0,0.00019997,2]
[329229510,1718191850687,-2673.62,0.00019997,2]
[329229511,1718191850704,-615.56,0.00019997,2]
[329229513,1718191850718,-535.85,0.00019997,2]
[329229515,1718191850730,-500.0,0.00019997,2]
[329229517,1718191850742,-500.0,0.00019998,2]
[329229518,1718191850760,-331.2669799,0.00019998,2]
[329229520,1718191850779,-500.0,0.00019998,2]
[329229521,1718191850800,-570.29,0.00019998,2]
[329229523,1718191850811,-500.0,0.00019998,2]
[329229524,1718191850825,-500.0,0.00019998,2]
[329229526,1718191850839,-500.0,0.00019998,2]
[329229528,1718191850852,-353.69817607,0.00019998,2]
[329229531,1718191850884,-370.12708786,0.00019998,2]
[329229532,1718191850899,-158.62589479,0.00019998,2]
[329229535,1718191850922,-1421.08,0.00019998,2]
[329229536,1718191850936,-500.0,0.00019998,2]
[329229538,1718191850949,-1063.22,0.00019998,2]
[329229541,1718191850962,-789.87,0.00019998,2]
[329229543,1718191850975,-500.0,0.00019998,2]
[329229545,1718191850991,-1095.74,0.00019998,2]
[329229547,1718191851013,-500.0,0.00019998,2]
[329229549,1718191851024,-500.0,0.00019998,2]
[329229550,1718191851035,-500.0,0.00019998,2]
[329229552,1718191851050,-500.0,0.00019998,2]
[329229554,1718191851063,-2101.54,0.00019998,2]
[329229556,1718191851077,-500.0,0.00019998,2]
[329229558,1718191851098,-811.23,0.00019998,2]
[329229560,1718191851111,-500.0,0.00019998,2]
[329229562,1718191851124,-500.0,0.00019998,2]
[329229564,1718191851141,-500.0,0.00019998,2]
[329229566,1718191851179,-500.0,0.00019998,2]
[329229568,1718191851201,-760.02,0.00019998,2]
[329229570,1718191851226,-594.76,0.00019998,2]
[329229572,1718191851248,-500.0,0.00019998,2]
[329229574,1718191851268,-500.0,0.00019998,2]
[329229576,1718191851292,-500.0,0.00019998,2]
[329229578,1718191851311,-500.0,0.00019998,2]
[329229580,1718191851323,-770.31,0.00019998,2]
[329229582,1718191851379,-865.1,0.00019998,2]
[329229584,1718191851396,-7587.97,0.00019998,2]
[329229586,1718191851414,-7587.97,0.00019998,2]
[329229588,1718191851427,-500.0,0.00019998,2]
[329229590,1718191851439,-1731.15,0.00019998,2]
[329229592,1718191851451,-500.0,0.00019998,2]
[329229594,1718191851467,-500.0,0.00019998,2]
[329229596,1718191851478,-500.0,0.00019998,2]
[329229598,1718191851491,-500.0,0.00019998,2]
[329229600,1718191851503,-500.0,0.00019998,2]
[329229602,1718191851515,-500.0,0.00019998,2]
[329229604,1718191851526,-500.0,0.00019998,2]
[329229606,1718191851542,-1365.74,0.00019998,2]
[329229608,1718191851562,-500.0,0.00019998,2]
[329229611,1718191851582,-500.0,0.00019998,2]
[329229613,1718191851617,-500.0,0.00019998,2]
[329229615,1718191851632,-500.0,0.00019998,2]
[329229617,1718191851645,-742.33,0.00019998,2]